[Event "GrandPrix_30.05"]
[Site "Chess.com"]
[Date "2020.05.30"]
[Round "1"]
[White "Arasvard"]
[Black "Meizon19"]
[Result "0-1"]
[WhiteElo "1994"]
[BlackElo "2318"]
[TimeControl "600+2"]
[EndTime "8:24:08 PDT"]
[Termination "Meizon19 won by resignation"]

1. d4 {[%clk 0:10:00.8]} 1... Nf6 {[%clk 0:10:00.3]} 2. c4 {[%clk 0:09:56.7]}
2... g6 {[%clk 0:10:00.6]} 3. f3 {[%clk 0:09:57]} 3... Bg7 {[%clk 0:10:01.1]} 4.
e4 {[%clk 0:09:57.7]} 4... d6 {[%clk 0:10:01.9]} 5. Ne2 {[%clk 0:09:58.8]} 5...
O-O {[%clk 0:10:00.8]} 6. Be3 {[%clk 0:09:59.8]} 6... b6 {[%clk 0:10:01.6]} 7.
Nbc3 {[%clk 0:09:56.9]} 7... c5 {[%clk 0:10:02.2]} 8. d5 {[%clk 0:09:55]} 8...
Nbd7 {[%clk 0:10:02]} 9. Ng3 {[%clk 0:09:54.1]} 9... a6 {[%clk 0:10:01.3]} 10.
Be2 {[%clk 0:09:49.4]} 10... Rb8 {[%clk 0:10:01.9]} 11. a4 {[%clk 0:09:49.9]}
11... Re8 {[%clk 0:09:57]} 12. O-O {[%clk 0:09:47.9]} 12... e6 {[%clk
0:09:48.6]} 13. Qd2 {[%clk 0:09:12.6]} 13... exd5 {[%clk 0:09:47.2]} 14. cxd5
{[%clk 0:09:14.5]} 14... Qe7 {[%clk 0:09:36.7]} 15. h3 {[%clk 0:08:42.9]} 15...
h5 {[%clk 0:09:20]} 16. Bg5 {[%clk 0:08:40.1]} 16... Qf8 {[%clk 0:09:18.9]} 17.
Rae1 {[%clk 0:08:09.1]} 17... Nh7 {[%clk 0:09:10.5]} 18. Bf4 {[%clk 0:07:57.5]}
18... Qe7 {[%clk 0:08:56]} 19. Bd3 {[%clk 0:07:24.2]} 19... Ne5 {[%clk
0:08:48.8]} 20. Nh1 {[%clk 0:06:56.5]} 20... Nxd3 {[%clk 0:08:33.6]} 21. Qxd3
{[%clk 0:06:57.2]} 21... b5 {[%clk 0:08:34.7]} 22. Nf2 {[%clk 0:06:46.2]} 22...
bxa4 {[%clk 0:08:27.8]} 23. e5 {[%clk 0:06:16.4]} 23... dxe5 {[%clk 0:07:37.6]}
24. Bxe5 {[%clk 0:06:11.3]} 24... Bxe5 {[%clk 0:07:28.3]} 25. f4 {[%clk
0:06:11.9]} 25... Bf5 {[%clk 0:06:48.8]} 26. Qf3 {[%clk 0:05:05.2]} 26... Qd6
{[%clk 0:05:47.4]} 27. fxe5 {[%clk 0:05:01.6]} 27... Rxe5 {[%clk 0:05:47.3]} 28.
g4 {[%clk 0:04:43.9]} 28... hxg4 {[%clk 0:05:34]} 29. hxg4 {[%clk 0:04:44]}
29... Rxe1 {[%clk 0:04:01.1]} 30. Rxe1 {[%clk 0:04:42.2]} 30... Bd7 {[%clk
0:03:54.6]} 31. Nfe4 {[%clk 0:03:50.7]} 31... Qe5 {[%clk 0:03:41.4]} 32. Rf1
{[%clk 0:03:48]} 32... Qd4+ {[%clk 0:03:27.1]} 33. Kh1 {[%clk 0:03:36.9]} 33...
Rf8 {[%clk 0:03:25]} 34. Rd1 {[%clk 0:03:08.4]} 34... Qe5 {[%clk 0:03:10.6]} 35.
Nxc5 {[%clk 0:03:02.2]} 35... Bc8 {[%clk 0:02:54.6]} 36. Nd3 {[%clk 0:02:43.4]}
36... Qg5 {[%clk 0:02:49.9]} 37. Nf2 {[%clk 0:02:25.8]} 37... Kg7 {[%clk
0:02:08.5]} 38. d6 {[%clk 0:02:09.9]} 38... Be6 {[%clk 0:01:52.2]} 39. Nce4
{[%clk 0:01:46.6]} 39... Qe5 {[%clk 0:01:40.3]} 40. Qc3 {[%clk 0:01:35.7]} 40...
Qxc3 {[%clk 0:01:40.3]} 41. bxc3 {[%clk 0:01:37.6]} 41... Nf6 {[%clk 0:01:38.7]}
42. g5 {[%clk 0:01:25.2]} 42... Nxe4 {[%clk 0:01:37]} 43. Nxe4 {[%clk
0:01:27.1]} 43... a3 {[%clk 0:01:17.8]} 44. Nc5 {[%clk 0:01:16.8]} 44... Rc8
{[%clk 0:01:07]} 45. Nxe6+ {[%clk 0:01:11.2]} 45... fxe6 {[%clk 0:01:07.8]} 46.
c4 {[%clk 0:00:59.5]} 46... a2 {[%clk 0:01:04.3]} 47. c5 {[%clk 0:00:17.3]}
47... Rxc5 {[%clk 0:00:31.4]} 48. Ra1 {[%clk 0:00:14.3]} 48... Rd5 {[%clk
0:00:29.6]} 49. Rxa2 {[%clk 0:00:13.8]} 49... Rxd6 {[%clk 0:00:30.7]} 50. Kg2
{[%clk 0:00:14.8]} 50... Kf7 {[%clk 0:00:30.7]} 51. Kf3 {[%clk 0:00:15.8]} 51...
e5 {[%clk 0:00:31.8]} 52. Ke4 {[%clk 0:00:16.5]} 52... Ke6 {[%clk 0:00:33.4]}
53. Ra5 {[%clk 0:00:16.2]} 53... Rd4+ {[%clk 0:00:33.6]} 54. Ke3 {[%clk
0:00:17.8]} 54... Kf5 {[%clk 0:00:33.3]} 55. Rxa6 {[%clk 0:00:16.1]} 55... Kxg5
{[%clk 0:00:33.7]} 56. Re6 {[%clk 0:00:16.8]} 56... Kf5 {[%clk 0:00:34.3]} 57.
Re8 {[%clk 0:00:18.7]} 57... Re4+ {[%clk 0:00:31.1]} 58. Kf3 {[%clk 0:00:19.6]}
58... Rf4+ {[%clk 0:00:32.2]} 59. Ke3 {[%clk 0:00:21.1]} 59... g5 {[%clk
0:00:32.8]} 60. Rg8 {[%clk 0:00:20.1]} 60... Rb4 {[%clk 0:00:31]} 61. Kd3 {[%clk
0:00:20.4]} 61... e4+ {[%clk 0:00:29.1]} 62. Ke3 {[%clk 0:00:21.1]} 62... Rb3+
{[%clk 0:00:30]} 63. Kd4 {[%clk 0:00:22.4]} 63... Rd3+ {[%clk 0:00:31.1]} 64.
Kc4 {[%clk 0:00:23.7]} 64... g4 {[%clk 0:00:31.8]} 0-1

[Event "GrandPrix_30.05"]
[Site "Chess.com"]
[Date "2020.05.30"]
[Round "1"]
[White "SoltaniciR"]
[Black "AlexVanGog"]
[Result "0-1"]
[WhiteElo "2164"]
[BlackElo "2610"]
[TimeControl "600+2"]
[EndTime "8:24:09 PDT"]
[Termination "AlexVanGog won by resignation"]

1. e4 {[%clk 0:10:00.3]} 1... c5 {[%clk 0:10:00.4]} 2. Nf3 {[%clk 0:10:00.3]}
2... d6 {[%clk 0:10:01.5]} 3. d4 {[%clk 0:10:00.6]} 3... cxd4 {[%clk 0:10:03.4]}
4. Nxd4 {[%clk 0:10:01.9]} 4... Nf6 {[%clk 0:10:04.3]} 5. Nc3 {[%clk 0:10:03.2]}
5... a6 {[%clk 0:10:05.8]} 6. Be3 {[%clk 0:10:03.8]} 6... e5 {[%clk 0:10:05]} 7.
Nf3 {[%clk 0:10:04.5]} 7... Qc7 {[%clk 0:10:01.7]} 8. a4 {[%clk 0:10:04.5]} 8...
Be7 {[%clk 0:10:00.5]} 9. a5 {[%clk 0:10:04.8]} 9... Be6 {[%clk 0:10:00.3]} 10.
Be2 {[%clk 0:10:05.6]} 10... Nbd7 {[%clk 0:09:58.3]} 11. Nd5 {[%clk 0:10:01.3]}
11... Bxd5 {[%clk 0:09:43]} 12. exd5 {[%clk 0:10:03.2]} 12... O-O {[%clk
0:09:43.6]} 13. O-O {[%clk 0:09:47.3]} 13... Ne8 {[%clk 0:09:07.8]} 14. c4
{[%clk 0:09:41.3]} 14... g6 {[%clk 0:09:03.1]} 15. b4 {[%clk 0:09:33.2]} 15...
Ng7 {[%clk 0:09:04]} 16. Bh6 {[%clk 0:06:48.1]} 16... Rfe8 {[%clk 0:08:47.9]}
17. Re1 {[%clk 0:06:33.3]} 17... Nf5 {[%clk 0:08:44.9]} 18. Bc1 {[%clk 0:05:56]}
18... e4 {[%clk 0:08:39.9]} 19. Ng5 {[%clk 0:05:25.4]} 19... Bf6 {[%clk
0:08:27]} 20. Ra3 {[%clk 0:05:23.6]} 20... e3 {[%clk 0:08:24.9]} 21. f4 {[%clk
0:05:20.6]} 21... h6 {[%clk 0:07:05.1]} 22. Nf3 {[%clk 0:05:12.3]} 22... Re4
{[%clk 0:07:05.1]} 23. g3 {[%clk 0:03:32.7]} 23... Rae8 {[%clk 0:05:40.5]} 24.
Bd3 {[%clk 0:03:05.9]} 24... Rxc4 {[%clk 0:05:38]} 25. Bxc4 {[%clk 0:02:48.5]}
25... Qxc4 {[%clk 0:05:39.9]} 26. Qb3 {[%clk 0:02:39.7]} 26... Qe4 {[%clk
0:05:27.2]} 27. Kg2 {[%clk 0:02:23.6]} 27... Nd4 {[%clk 0:03:35.1]} 28. Qd1
{[%clk 0:02:06.3]} 28... e2 {[%clk 0:03:21.3]} 29. Qd3 {[%clk 0:02:00.3]} 29...
Nc2 {[%clk 0:03:17]} 30. Qxe4 {[%clk 0:01:05.1]} 30... Rxe4 {[%clk 0:03:18.9]}
31. Rb3 {[%clk 0:01:06.2]} 31... Nxe1+ {[%clk 0:02:37.6]} 32. Nxe1 {[%clk
0:01:06.6]} 32... Rc4 {[%clk 0:02:39.2]} 33. Bd2 {[%clk 0:00:58.3]} 33... Rd4
{[%clk 0:02:37.8]} 34. Rd3 {[%clk 0:00:55.9]} 34... Rxd3 {[%clk 0:02:06.5]} 35.
Nxd3 {[%clk 0:00:57.8]} 35... Bd4 {[%clk 0:01:55.1]} 36. Kf3 {[%clk 0:00:27.5]}
36... Nf6 {[%clk 0:01:54.9]} 37. Kxe2 {[%clk 0:00:20.8]} 37... Nxd5 {[%clk
0:01:54.1]} 38. f5 {[%clk 0:00:18.7]} 38... gxf5 {[%clk 0:01:51.3]} 39. Bxh6
{[%clk 0:00:19]} 39... Bc3 {[%clk 0:01:37.2]} 40. Bd2 {[%clk 0:00:12.9]} 40...
Bxd2 {[%clk 0:01:38.1]} 41. Kxd2 {[%clk 0:00:14.6]} 41... Kg7 {[%clk 0:01:39.5]}
42. Ke2 {[%clk 0:00:15.4]} 42... Kf6 {[%clk 0:01:36.8]} 43. Kf3 {[%clk
0:00:16.8]} 43... Ne7 {[%clk 0:01:29.6]} 44. Ke3 {[%clk 0:00:13.9]} 44... Nc6
{[%clk 0:01:30.1]} 45. Kf4 {[%clk 0:00:10.4]} 45... Ne5 {[%clk 0:01:24.4]} 46.
Ne1 {[%clk 0:00:09.5]} 46... d5 {[%clk 0:00:50]} 47. h3 {[%clk 0:00:09.6]} 47...
d4 {[%clk 0:00:49.1]} 48. Nc2 {[%clk 0:00:04]} 48... d3 {[%clk 0:00:47.4]} 49.
Ne3 {[%clk 0:00:04.6]} 49... d2 {[%clk 0:00:41.3]} 50. Nd1 {[%clk 0:00:05.5]}
50... Nd3+ {[%clk 0:00:39.9]} 51. Ke3 {[%clk 0:00:06.2]} 51... Nxb4 {[%clk
0:00:41.8]} 52. Kxd2 {[%clk 0:00:06.8]} 52... Nc6 {[%clk 0:00:42.6]} 53. Kc3
{[%clk 0:00:05.9]} 53... Nxa5 {[%clk 0:00:44]} 54. Kb4 {[%clk 0:00:06.6]} 54...
b6 {[%clk 0:00:43.3]} 55. Ne3 {[%clk 0:00:05.8]} 55... Ke5 {[%clk 0:00:36.9]}
56. h4 {[%clk 0:00:06.4]} 56... Ke4 {[%clk 0:00:32.5]} 57. h5 {[%clk 0:00:06.8]}
57... Kxe3 {[%clk 0:00:31.8]} 58. h6 {[%clk 0:00:07.7]} 58... Nc6+ {[%clk
0:00:32.4]} 59. Kc4 {[%clk 0:00:08.6]} 59... Ne5+ {[%clk 0:00:33.8]} 0-1

[Event "GrandPrix_30.05"]
[Site "Chess.com"]
[Date "2020.05.30"]
[Round "1"]
[White "RaphaeI"]
[Black "MaxVavulin"]
[Result "0-1"]
[WhiteElo "2244"]
[BlackElo "2093"]
[TimeControl "600+2"]
[EndTime "8:24:09 PDT"]
[Termination "MaxVavulin won on time"]

1. Nf3 {[%clk 0:10:01.3]} 1... Nf6 {[%clk 0:09:57.3]} 2. c4 {[%clk 0:10:01.8]}
2... b6 {[%clk 0:09:51.5]} 3. d4 {[%clk 0:09:59.1]} 3... e6 {[%clk 0:09:51.8]}
4. g3 {[%clk 0:09:59.9]} 4... Ba6 {[%clk 0:09:52.2]} 5. b3 {[%clk 0:09:57.6]}
5... b5 {[%clk 0:09:52.2]} 6. cxb5 {[%clk 0:09:56.2]} 6... Bxb5 {[%clk 0:09:53]}
7. Bg2 {[%clk 0:09:58.1]} 7... d5 {[%clk 0:09:46]} 8. O-O {[%clk 0:09:51.7]}
8... Bd6 {[%clk 0:09:41.2]} 9. Nc3 {[%clk 0:09:49.5]} 9... Ba6 {[%clk
0:09:41.6]} 10. Bg5 {[%clk 0:09:11.2]} 10... Nbd7 {[%clk 0:09:36.9]} 11. Re1
{[%clk 0:08:56.1]} 11... h6 {[%clk 0:09:30.9]} 12. Bxf6 {[%clk 0:08:57.1]} 12...
Nxf6 {[%clk 0:09:31.3]} 13. Ne5 {[%clk 0:08:58.7]} 13... Bb7 {[%clk 0:07:13.2]}
14. Rc1 {[%clk 0:07:45]} 14... c5 {[%clk 0:06:31.9]} 15. Nb5 {[%clk 0:06:08.6]}
15... cxd4 {[%clk 0:06:32.6]} 16. Qxd4 {[%clk 0:05:08.3]} 16... Bb8 {[%clk
0:06:08.4]} 17. Nc6 {[%clk 0:03:53.7]} 17... Bxc6 {[%clk 0:04:11.3]} 18. Rxc6
{[%clk 0:03:55.6]} 18... O-O {[%clk 0:04:12.4]} 19. Rec1 {[%clk 0:03:46.8]}
19... Qa5 {[%clk 0:02:49.5]} 20. a4 {[%clk 0:03:37.1]} 20... a6 {[%clk
0:02:47.5]} 21. Nc7 {[%clk 0:01:49.9]} 21... Ra7 {[%clk 0:02:34.1]} 22. Qc3
{[%clk 0:00:54.8]} 22... Bxc7 {[%clk 0:02:17.1]} 23. Rxc7 {[%clk 0:00:55]} 23...
Rxc7 {[%clk 0:02:18.5]} 24. Qxc7 {[%clk 0:00:55.5]} 24... Qb4 {[%clk 0:01:16.3]}
25. Qc3 {[%clk 0:00:42.4]} 25... Rb8 {[%clk 0:01:17.2]} 26. Qxb4 {[%clk
0:00:41]} 26... Rxb4 {[%clk 0:01:18.3]} 27. Rc3 {[%clk 0:00:33.2]} 27... d4
{[%clk 0:01:18.7]} 28. Rd3 {[%clk 0:00:18]} 28... Nd7 {[%clk 0:01:13.2]} 29. e3
{[%clk 0:00:19.2]} 29... dxe3 {[%clk 0:00:41.3]} 30. Rxe3 {[%clk 0:00:20.3]}
30... Nc5 {[%clk 0:00:41.4]} 31. Bf1 {[%clk 0:00:22]} 31... Nxb3 {[%clk
0:00:31.1]} 32. Bxa6 {[%clk 0:00:22.3]} 32... Nc5 {[%clk 0:00:28.7]} 33. Bb5
{[%clk 0:00:21.2]} 33... Nxa4 {[%clk 0:00:29.9]} 34. Bxa4 {[%clk 0:00:22.6]}
34... Rxa4 {[%clk 0:00:31.2]} 35. h4 {[%clk 0:00:24.5]} 35... g5 {[%clk
0:00:26.4]} 36. hxg5 {[%clk 0:00:25.1]} 36... hxg5 {[%clk 0:00:27.7]} 37. Rb3
{[%clk 0:00:26.6]} 37... Kg7 {[%clk 0:00:28.2]} 38. Rb5 {[%clk 0:00:27.9]} 38...
Kf6 {[%clk 0:00:28]} 39. Kg2 {[%clk 0:00:29.3]} 39... g4 {[%clk 0:00:28.6]} 40.
Rc5 {[%clk 0:00:30.1]} 40... Kg6 {[%clk 0:00:28.3]} 41. Rb5 {[%clk 0:00:31.2]}
41... f5 {[%clk 0:00:29.3]} 42. Rb6 {[%clk 0:00:32.6]} 42... Kf6 {[%clk
0:00:30.2]} 43. Rb5 {[%clk 0:00:34]} 43... Ra3 {[%clk 0:00:30.5]} 44. Rc5 {[%clk
0:00:34.1]} 44... Rf3 {[%clk 0:00:26]} 45. Rb5 {[%clk 0:00:34.4]} 45... e5
{[%clk 0:00:23.6]} 46. Rb6+ {[%clk 0:00:34.7]} 46... Ke7 {[%clk 0:00:21.6]} 47.
Ra6 {[%clk 0:00:32.2]} 47... e4 {[%clk 0:00:22.4]} 48. Rb6 {[%clk 0:00:30.5]}
48... Rd3 {[%clk 0:00:19.3]} 49. Ra6 {[%clk 0:00:31.3]} 49... Rd6 {[%clk
0:00:20]} 50. Ra5 {[%clk 0:00:28.8]} 50... Ke6 {[%clk 0:00:21.1]} 51. Rb5 {[%clk
0:00:29.8]} 51... Rd5 {[%clk 0:00:21.9]} 52. Rb8 {[%clk 0:00:23.7]} 52... Ke5
{[%clk 0:00:23.4]} 53. Re8+ {[%clk 0:00:22.1]} 53... Kd4 {[%clk 0:00:24.5]} 54.
Rf8 {[%clk 0:00:23.6]} 54... Kd3 {[%clk 0:00:25.6]} 55. Ra8 {[%clk 0:00:11.7]}
55... Rc5 {[%clk 0:00:22.2]} 56. Ra2 {[%clk 0:00:06.7]} 56... Rc2 {[%clk
0:00:14.2]} 0-1

[Event "GrandPrix_30.05"]
[Site "Chess.com"]
[Date "2020.05.30"]
[Round "1"]
[White "weplaychess09"]
[Black "Mesropov_Konstantin"]
[Result "1/2-1/2"]
[WhiteElo "2061"]
[BlackElo "2318"]
[TimeControl "600+2"]
[EndTime "8:24:10 PDT"]
[Termination "Game drawn by stalemate"]

1. d4 {[%clk 0:10:01.9]} 1... e6 {[%clk 0:09:59.9]} 2. c4 {[%clk 0:10:02.6]}
2... d5 {[%clk 0:09:59.3]} 3. Nc3 {[%clk 0:10:02.8]} 3... f5 {[%clk 0:10:00.3]}
4. e3 {[%clk 0:10:01.1]} 4... Nf6 {[%clk 0:09:57.2]} 5. Bd3 {[%clk 0:10:02.1]}
5... c6 {[%clk 0:09:56.3]} 6. Nge2 {[%clk 0:10:02.5]} 6... Bd6 {[%clk
0:09:54.3]} 7. Qc2 {[%clk 0:10:01.1]} 7... Ne4 {[%clk 0:09:48.9]} 8. O-O {[%clk
0:09:48.8]} 8... O-O {[%clk 0:09:42.9]} 9. f3 {[%clk 0:09:41.8]} 9... Nxc3
{[%clk 0:08:58.4]} 10. Nxc3 {[%clk 0:09:42.2]} 10... Nd7 {[%clk 0:08:37.1]} 11.
Bd2 {[%clk 0:09:39.5]} 11... Nf6 {[%clk 0:08:24.3]} 12. Rae1 {[%clk 0:09:02.2]}
12... Qc7 {[%clk 0:08:05.7]} 13. h3 {[%clk 0:07:42.9]} 13... Bg3 {[%clk
0:07:08.4]} 14. Rd1 {[%clk 0:07:16.9]} 14... Bh2+ {[%clk 0:06:36.5]} 15. Kh1
{[%clk 0:07:16.7]} 15... Bd6 {[%clk 0:06:37.4]} 16. e4 {[%clk 0:06:59.8]} 16...
Nh5 {[%clk 0:06:25.3]} 17. Ne2 {[%clk 0:05:25.8]} 17... g6 {[%clk 0:03:23.1]}
18. e5 {[%clk 0:04:33.2]} 18... Be7 {[%clk 0:03:22.3]} 19. g4 {[%clk 0:03:52.6]}
19... Ng7 {[%clk 0:03:22.3]} 20. Rg1 {[%clk 0:03:09]} 20... b6 {[%clk
0:03:21.4]} 21. Bh6 {[%clk 0:02:59.2]} 21... dxc4 {[%clk 0:02:37.8]} 22. Bxc4
{[%clk 0:02:54.1]} 22... fxg4 {[%clk 0:02:21.1]} 23. fxg4 {[%clk 0:02:25.5]}
23... Bb7 {[%clk 0:02:07.8]} 24. Bxg7 {[%clk 0:02:12.6]} 24... Kxg7 {[%clk
0:01:54.3]} 25. Bxe6 {[%clk 0:01:56.6]} 25... c5+ {[%clk 0:01:47.5]} 26. d5
{[%clk 0:01:52.9]} 26... Qxe5 {[%clk 0:01:47.6]} 27. Qc3 {[%clk 0:01:51.7]}
27... Bf6 {[%clk 0:01:35]} 28. Qxe5 {[%clk 0:01:43.7]} 28... Bxe5 {[%clk
0:01:36.9]} 29. Rd2 {[%clk 0:01:37.3]} 29... Rf6 {[%clk 0:01:30.9]} 30. Rg2
{[%clk 0:01:24.4]} 30... Rd8 {[%clk 0:01:26.9]} 31. Rc2 {[%clk 0:01:01]} 31...
Rxd5 {[%clk 0:01:04.8]} 32. Bxd5 {[%clk 0:01:01]} 32... Bxd5 {[%clk 0:01:05.9]}
33. Kg1 {[%clk 0:00:59.7]} 33... Bxg2 {[%clk 0:01:01.6]} 34. Kxg2 {[%clk
0:01:01.2]} 34... Re6 {[%clk 0:01:01.3]} 35. b3 {[%clk 0:00:59.9]} 35... h5
{[%clk 0:01:01.5]} 36. gxh5 {[%clk 0:01:00.6]} 36... gxh5 {[%clk 0:01:02.3]} 37.
Kf3 {[%clk 0:01:01.5]} 37... Kf7 {[%clk 0:00:58.8]} 38. a3 {[%clk 0:00:52.2]}
38... a5 {[%clk 0:00:56.2]} 39. Nc1 {[%clk 0:00:51.8]} 39... Bd4 {[%clk
0:00:55]} 40. Re2 {[%clk 0:00:51.6]} 40... Rf6+ {[%clk 0:00:47.3]} 41. Kg2
{[%clk 0:00:52.1]} 41... a4 {[%clk 0:00:42.8]} 42. bxa4 {[%clk 0:00:52.1]} 42...
c4 {[%clk 0:00:42.3]} 43. Re4 {[%clk 0:00:52.8]} 43... Rf2+ {[%clk 0:00:35.4]}
44. Kg3 {[%clk 0:00:53.7]} 44... Rd2 {[%clk 0:00:32.3]} 45. Ne2 {[%clk
0:00:50.7]} 45... Bf6 {[%clk 0:00:27.8]} 46. Re3 {[%clk 0:00:49.2]} 46... Rd3
{[%clk 0:00:26.5]} 47. Kf3 {[%clk 0:00:42.4]} 47... Bg5 {[%clk 0:00:27.4]} 48.
Rxd3 {[%clk 0:00:42.8]} 48... cxd3 {[%clk 0:00:28.5]} 49. Nc3 {[%clk 0:00:42]}
49... Ke6 {[%clk 0:00:28.5]} 50. Ke4 {[%clk 0:00:42.3]} 50... d2 {[%clk
0:00:27.6]} 51. Kd3 {[%clk 0:00:43.3]} 51... Kf5 {[%clk 0:00:20]} 52. Ke2 {[%clk
0:00:43.8]} 52... h4 {[%clk 0:00:17.4]} 53. Nd5 {[%clk 0:00:43.1]} 53... Bd8
{[%clk 0:00:11.8]} 54. Kxd2 {[%clk 0:00:43.4]} 54... Ke4 {[%clk 0:00:13.2]} 55.
Nb4 {[%clk 0:00:41.6]} 55... Kf3 {[%clk 0:00:14.1]} 56. Nc6 {[%clk 0:00:41.2]}
56... Bc7 {[%clk 0:00:13.8]} 57. Ke1 {[%clk 0:00:42]} 57... Kg3 {[%clk
0:00:13.1]} 58. Kf1 {[%clk 0:00:43]} 58... Kxh3 {[%clk 0:00:14]} 59. Kg1 {[%clk
0:00:36.7]} 59... Kg3 {[%clk 0:00:14.3]} 60. a5 {[%clk 0:00:36.2]} 60... bxa5
{[%clk 0:00:12.6]} 61. Nxa5 {[%clk 0:00:36.1]} 61... Bxa5 {[%clk 0:00:13.1]} 62.
a4 {[%clk 0:00:36.2]} 62... Bb4 {[%clk 0:00:13.2]} 63. a5 {[%clk 0:00:37.1]}
63... Bxa5 {[%clk 0:00:14.1]} 64. Kh1 {[%clk 0:00:37.7]} 64... h3 {[%clk
0:00:13.8]} 65. Kg1 {[%clk 0:00:39]} 65... h2+ {[%clk 0:00:13.8]} 66. Kh1 {[%clk
0:00:40.7]} 66... Kh3 {[%clk 0:00:14]} 1/2-1/2

[Event "GrandPrix_30.05"]
[Site "Chess.com"]
[Date "2020.05.30"]
[Round "1"]
[White "chessdjw"]
[Black "Grandelicious"]
[Result "1-0"]
[WhiteElo "2298"]
[BlackElo "2616"]
[TimeControl "600+2"]
[EndTime "8:24:12 PDT"]
[Termination "chessdjw won by checkmate"]

1. e4 {[%clk 0:10:00.9]} 1... c5 {[%clk 0:10:00.3]} 2. Nf3 {[%clk 0:10:01.7]}
2... d6 {[%clk 0:10:01.2]} 3. Bb5+ {[%clk 0:10:03]} 3... Nd7 {[%clk 0:10:01.6]}
4. a4 {[%clk 0:10:03.5]} 4... a6 {[%clk 0:09:52.1]} 5. Be2 {[%clk 0:10:03.8]}
5... Ngf6 {[%clk 0:09:48.5]} 6. Nc3 {[%clk 0:10:04.1]} 6... b6 {[%clk
0:09:42.9]} 7. d4 {[%clk 0:10:04.7]} 7... cxd4 {[%clk 0:09:43.3]} 8. Qxd4 {[%clk
0:10:06.6]} 8... Bb7 {[%clk 0:09:38.7]} 9. O-O {[%clk 0:10:07.2]} 9... e6 {[%clk
0:09:37.4]} 10. Rd1 {[%clk 0:10:06.9]} 10... Be7 {[%clk 0:09:14.7]} 11. e5
{[%clk 0:10:06.6]} 11... dxe5 {[%clk 0:09:08.5]} 12. Nxe5 {[%clk 0:10:05.5]}
12... Bc5 {[%clk 0:08:39.4]} 13. Qf4 {[%clk 0:08:56.1]} 13... Qc7 {[%clk
0:07:55.4]} 14. Nxd7 {[%clk 0:05:34.1]} 14... Qxf4 {[%clk 0:07:54.2]} 15. Bxf4
{[%clk 0:05:36]} 15... Nxd7 {[%clk 0:07:55.6]} 16. Rd2 {[%clk 0:05:18.6]} 16...
Nf6 {[%clk 0:06:27.6]} 17. Rad1 {[%clk 0:05:11.8]} 17... Bb4 {[%clk 0:03:59.3]}
18. Bc7 {[%clk 0:03:27.4]} 18... Bxc3 {[%clk 0:01:19.8]} 19. Rd8+ {[%clk
0:03:27.1]} 19... Ke7 {[%clk 0:01:21.2]} 20. Rxh8 {[%clk 0:03:28.6]} 20... Rxh8
{[%clk 0:01:22.3]} 21. Bd6+ {[%clk 0:03:29.9]} 21... Ke8 {[%clk 0:00:31.8]} 22.
bxc3 {[%clk 0:03:29.6]} 22... Ne4 {[%clk 0:00:30.3]} 23. Bb4 {[%clk 0:03:22.2]}
23... f5 {[%clk 0:00:22]} 24. f3 {[%clk 0:03:15.3]} 24... Nf6 {[%clk 0:00:23.1]}
25. c4 {[%clk 0:02:45.4]} 25... Kf7 {[%clk 0:00:21.1]} 26. Rd6 {[%clk
0:02:45.8]} 26... a5 {[%clk 0:00:19.6]} 27. Ba3 {[%clk 0:02:27.8]} 27... Rc8
{[%clk 0:00:18.9]} 28. Rxb6 {[%clk 0:02:28.7]} 28... Bc6 {[%clk 0:00:20.3]} 29.
Ra6 {[%clk 0:01:59.8]} 29... Bxa4 {[%clk 0:00:21.3]} 30. Bd3 {[%clk 0:02:01]}
30... Nd7 {[%clk 0:00:20.7]} 31. Rxa5 {[%clk 0:02:00.5]} 31... Bc6 {[%clk
0:00:22.2]} 32. Kf2 {[%clk 0:01:59.6]} 32... g5 {[%clk 0:00:22.5]} 33. Bd6
{[%clk 0:01:51.8]} 33... h5 {[%clk 0:00:23.4]} 34. Ra7 {[%clk 0:01:35.4]} 34...
g4 {[%clk 0:00:23.9]} 35. c5 {[%clk 0:01:30.5]} 35... Kf6 {[%clk 0:00:22.4]} 36.
f4 {[%clk 0:01:03.2]} 36... h4 {[%clk 0:00:20]} 37. g3 {[%clk 0:01:00.7]} 37...
hxg3+ {[%clk 0:00:20]} 38. hxg3 {[%clk 0:01:02.6]} 38... Rh8 {[%clk 0:00:05.9]}
39. Rc7 {[%clk 0:01:01.5]} 39... Rh2+ {[%clk 0:00:07]} 40. Ke3 {[%clk
0:01:02.2]} 40... Nb8 {[%clk 0:00:07.1]} 41. Be5+ {[%clk 0:00:49.2]} 41... Kg6
{[%clk 0:00:08.5]} 42. Rg7+ {[%clk 0:00:50.6]} 42... Kh6 {[%clk 0:00:09.9]} 43.
Rg8 {[%clk 0:00:52.2]} 43... Rg2 {[%clk 0:00:06.9]} 44. Rxb8 {[%clk 0:00:39.4]}
44... Rxg3+ {[%clk 0:00:07.2]} 45. Kd4 {[%clk 0:00:41]} 45... Rg1 {[%clk
0:00:05.7]} 46. Rc8 {[%clk 0:00:34.5]} 46... Bf3 {[%clk 0:00:04.3]} 47. Re8
{[%clk 0:00:33.9]} 47... g3 {[%clk 0:00:05.6]} 48. Rxe6+ {[%clk 0:00:34.5]}
48... Kh5 {[%clk 0:00:07.2]} 49. Bxf5 {[%clk 0:00:17.3]} 49... g2 {[%clk
0:00:07]} 50. Re7 {[%clk 0:00:09]} 50... Rd1+ {[%clk 0:00:06.4]} 51. Kc3 {[%clk
0:00:10.1]} 51... Kh4 {[%clk 0:00:06.7]} 52. Rh7+ {[%clk 0:00:09]} 52... Kg3
{[%clk 0:00:08]} 53. Rg7+ {[%clk 0:00:10.2]} 53... Kf2 {[%clk 0:00:07.8]} 54.
Bd4+ {[%clk 0:00:11.3]} 54... Ke2 {[%clk 0:00:06.4]} 55. Bd3+ {[%clk 0:00:11.9]}
55... Ke1 {[%clk 0:00:06.7]} 56. Re7+ {[%clk 0:00:12]} 56... Be2 {[%clk
0:00:05.3]} 57. Rxe2+ {[%clk 0:00:12.6]} 57... Kf1 {[%clk 0:00:07.2]} 58. Rd2+
{[%clk 0:00:13.9]} 58... Ke1 {[%clk 0:00:08.6]} 59. Bf2# {[%clk 0:00:14.1]} 1-0